Workbook

Sheet Armenian
B2: ՀՀ ԿՈՏԱՅՔԻ ՄԱՐԶ Ք. ՉԱՐԵՆՑԱՎԱՆ ՔՈՉԱՐԻ ՓՈՂՈՑ ԹԻՎ 15 ՀԱՍՑԵՈՒՄ ՄԱՆԿԱՊԱՐՏԵԶԻ ՎԵՐԱՆՈՐՈԳՈՒՄ
C3: Ծավալաթերթ
B5: № | C5: Աշխատանքների անվանումը | D5: Չափ. միավ. | E5: Քանակ | F5: Ընդհանուր գինը
F6: (նյութ + աշխատանք)
F7: ՀՀ դրամ
F8: Միավոր | G8: Ընդհ.
B9: ՀՀ ԿՈՏԱՅՔԻ ՄԱՐԶ Ք. ՉԱՐԵՆՑԱՎԱՆ ՔՈՉԱՐԻ ՓՈՂՈՑ ԹԻՎ 15 ՀԱՍՑԵՈՒՄ ՄԱՆԿԱՊԱՐՏԵԶԻ ՎԵՐԱՆՈՐՈԳՈՒՄ
C10: Քանդման աշխատանքներ
B11: 1 | C11: Միջնապատերի քանդում Խարամաբետոնե սալերից 100 մմ հաստ. | D11: մ3 | E11: =10.71*0.15 -> 1.6065
B12: 2 | C12: Փայտե դռների քանդում | D12: 100մ2 | E12: 0.036
B13: =B12+1 -> 3 | C13: Մանրահատակի քանդում | D13: 100մ2 | E13: 0.705
B14: 4 | C14: Մոզայիկ հատակների քանդում | D14: 100մ2 | E14: =80.6/100 -> 0.806
B15: 5 | C15: Կերամիկական սալիկների քանդում | D15: 100մ2 | E15: 0.041
B16: 6 | C16: Ցեմ-ավազե հարթ.շերտ հաստ. 30մմ | D16: 100մ2 | E16: =557.6/100 -> 5.576
B17: 7 | C17: Պատերից հին ներկի մաքրում | D17: 100մ2 | E17: 1.614
B18: 8 | C18: Գաջե սվաղի քանդում առաստաղից | D18: 100մ2 | E18: 2.5
B19: 9 | C19: Շին աղբի հավաքում և տեղափոխում մինչև 11 կմ | D19: տ | E19: 1.223
C20: Պատուհաններ, դռներ
B21: 1 | C21: Մետաղապլաստե պատուհան տեղական 60 մմ հաստ 4+4 մմ ապակեփաթեթով սպիտակ բացվող | D21: մ2 | E21: 4.2
B22: 2 | C22: Մետաղապլաստե պատուհան տեղական 60 մմ հաստ 4+4 մմ ապակեփաթեթով սպիտակ, չբացվող | D22: մ2 | E22: 6.64
B23: 3 | C23: Մետաղապլաստե դռներ տեղական սպիտակ | D23: մ2 | E23: 9.4
B24: 4 | C24: Պլասմասե պատուհանագոգեր 25սմ | D24: գ.մ | E24: =1.75*4 -> 7
C25: Հատակներ
B26: 1 | C26: Պատերի սվաղ գաջե շաղախով | D26: 100մ2 | E26: 0.602
B27: 2 | C27: Պատերի ներկում | D27: 100մ2 | E27: 1.665
B28: 3 | C28: Պատերի սվաղ ցեմենտային շաղախով | D28: 100մ2 | E28: 0.375
B29: 4 | C29: Պատուհանների շեպերի սվաղ գաջե շաղախով | D29: 100մ2 | E29: 0.101
B30: 5 | C30: Պատուհանների շեպերի ներկում | D30: 100մ2 | E30: =+E29 -> 0.101
B31: 6 | C31: Պատերի կերամիկական սալիկապատում | D31: 100մ2 | E31: 0.309
B32: 7 | C32: Արմստրոնգ առաստաղ | D32: մ2 | E32: 66.1
C33: Կոնստրուկտիվ աշխատանքներ
B34: 1 | C34: Միջնորմների շար 10 սմ խ.բետոնե բլոկներով | D34: մ2 | E34: 16.5
B35: 2 | C35: Միջնորմների շար 20 սմ խ.բետոնե բլոկներով | D35: մ2 | E35: 13.5
B36: 3 | C36: Անցքերի լցոնում թեթև բետոնով B-7.5 դասի | D36: մ3 | E36: =(16.5*0.1)*0.25+0.81 -> 1.2225
B37: 4 | C37: Պատի շարվածքի ամրանավորում | D37: տ | E37: =0.041+0.0362 -> 0.0772
B38: 5 | C38: Ամրան A500C դասի 12մմ | D38: տ | E38: =+E37 -> 0.0772
B39: 6 | C39: Արտաքին պատերից քանդված քարերի լրացում սրբատաշ տուֆ քարից ց/ա շաղախի կիրառմամբ | D39: մ3 | E39: =0.22+0.56+0.2 -> 0.98
B40: 7 | C40: Արտաքին պատերի սվաղ ցեմենտային շաղախով | D40: 100մ2 | E40: 0.0178
B41: 8 | C41: Արտաքին պատերի ներկում ֆասադային ներկով | D41: 100մ2 | E41: =+E40 -> 0.0178
B42: 9 | C42: Պատի շարվածքի ամրանավորում | D42: տ | E42: =(0.0126+0.0432+0.0378+0.0756+0.0729+0.0252+0.0288+0.048)/10 -> 0.03441
B43: 10 | C43: Ամրան A500C դասի 12մմ | D43: տ | E43: =(0.0126+0.0432+0.0378+0.0756+0.0729+0.0252+0.0288+0.048)/10 -> 0.03441
B44: 11 | C44: Երկաթբետոնե բարավորների իրականացում B-20 դասի բետոնով | D44: մ3 | E44: 0.39
B45: 12 | C45: Ամրան A500C դասի | D45: տ | E45: 0.037
B46: 13 | C46: Ամրան Ac1 դասի | D46: տ | E46: 0.048
C47: Þ»ÝùÇ Ý»ñùÇÝ ë³éÁ ¨ ï³ù çñ³Ù³ï³Ï³ñ³ñÙ³Ý ³ßË³ï³ÝùÝ»ñ
B48: 1 | C48: äáÉÇåñáåÇÉ»Ý» ËáÕáí³Ï PPR-AL-PEX Ø25մմ | D48: մ | E48: 16
B49: 2 | C49: äáÉÇåñáåÇÉ»Ý» ËáÕáí³Ï PPR-AL-PEX ∅20 | D49: մ | E49: 18
B50: 3 | C50: PPR ամրակ (клипса) Ø25մմ | D50: հատ | E50: 20
B51: 4 | C51: PPR ամրակ (клипса) Ø20մմ | D51: հատ | E51: 30
B52: 5 | C52: äáÉÇåñáåÇÉ»Ý» ËáÕáí³ÏÇ Ó¨³íáñ Ù³ë»ñ Ø25 | D52: հատ | E52: =2+5+4+5 -> 16
B53: 6 | C53: äáÉÇåñáåÇÉ»Ý» ËáÕáí³ÏÇ Ó¨³íáñ Ù³ë»ñ Ø20 | D53: հատ | E53: 8
B54: 7 | C54: PPR գնդիկավոր փական Ø25 մմ | D54: հատ | E54: 4
B55: 8 | C55: Կոմբինացված անկյունակ 20-1/2*F | D55: հատ | E55: 16
B56: 9 | C56: Èí³ó³ñ³ÝÇ Íáñ³Ï-խառնիչի ï»Õ³¹ñáõÙ | D56: հատ | E56: 9
B57: 10 | C57: Համակարգի փորձարկում | D57: 100մ | E57: =0.16+0.18 -> 0.34
C58: Ն»ñùÇÝ և արտաքին ÏáÛáõÕáõ ³ßË³ï³ÝùÝ»ñ
B59: 1 | C59: PVC կոյուղու խողովակ Ø110 | D59: մ | E59: 27
B60: 2 | C60: PVC կոյուղու խողովակ Ø50 | D60: մ | E60: 26.5
B61: 3 | C61: PVC անկյունակ Ø110 90* | D61: հատ | E61: 1
B62: 4 | C62: PVC անկյունակ Ø110 45* | D62: հատ | E62: 6
B63: 5 | C63: PVC անկյունակ Ø50 90* | D63: հատ | E63: 5
B64: 6 | C64: PVC անկյունակ Ø50 45* | D64: հատ | E64: 25
B65: 7 | C65: PVC եռաբաշխիչ Ø110 45* | D65: հատ | E65: 4
B66: 8 | C66: PVC եռաբաշխիչ Ø110 90* | D66: հատ | E66: 6
B67: 9 | C67: PVC եռաբաշխիչ Ø50 45* | D67: հատ | E67: 6
B68: 10 | C68: PVC եռաբաշխիչ Ø50-110 45* | D68: հատ | E68: 6
B69: 11 | C69: PVC անցում Ø50-110 | D69: հատ | E69: 3
B70: 12 | C70: Հոսակ ö50 | D70: լրակազմ | E70: 6
B71: 13 | C71: ¼áõ·³ñ³Ý³ÏáÝù | D71: լրակազմ | E71: 7
B72: 14 | C72: Խոհանոցակոնք | D72: հատ | E72: 1
B73: 15 | C73: Լվացարան | D73: հատ | E73: 8
B74: 16 | C74: Համակարգի փորձարկում | D74: 100մ | E74: =0.27+0.265 -> 0.535
C75: Էլեկտրոտեխնիկական աշխատանքներ
B76: 1 | C76: Վահանակ դռնակով, տեղադրվող պատի խոռոչում, 6 մոդուլի համար | D76: հատ | E76: 1
B77: 2 | C77: Ավտոմատ անջատիչ միաբևեռ, 40Ա 6կԱ | D77: հատ | E77: 1
B78: 3 | C78: Ավտոմատ անջատիչ միաբևեռ, 32Ա 6կԱ | D78: հատ | E78: 5
B79: 4 | C79: Ավտոմատ անջատիչ միաբևեռ, 10Ա 6կԱ | D79: հատ | E79: 2
B80: 5 | C80: Մալուխ պղնձե ВВГнг-Ls 3x1.5մմ2 | D80: 100մ | E80: 0.84
B81: 6 | C81: Մալուխ պղնձե ВВГнг-Ls 3x2.5մմ2 | D81: 100մ | E81: 0.72
B82: 7 | C82: Մալուխ պղնձե ВВГнг-Ls 3x4մմ2 | D82: 100մ | E82: 0.27
B83: 8 | C83: Պոլիէթիլենային էլեկտրատեխնիկական գոֆրե խողովակ այրմանը չնպաստող Ф20մմ | D83: 100մ | E83: 0.37
B84: 9 | C84: Վարդակ 16Ա, շուկո տիպի | D84: 100հատ | E84: 0.17
B85: 10 | C85: Անջատիչ, մեկստեղն 220Վ, 6Ա | D85: 100հատ | E85: 0.02
B86: 11 | C86: Անջատիչ, երկտեղն 220Վ, 6Ա | D86: 100հատ | E86: =3/100 -> 0.03
B87: 12 | C87: Շրջանակ 1 տեղ | D87: հատ | E87: 5
B88: 13 | C88: Շրջանակ 2 տեղ | D88: հատ | E88: 6
B89: 14 | C89: Վարդակ / անջատիչի տուփ | D89: հատ | E89: 22
B90: 15 | C90: Լուսադիոդային LED լուսատու առաստաղի 36 wt | D90: հատ | E90: 22
B91: 16 | C91: Լուսադիոդային LED լուսատու առաստաղի 22 wt | D91: հատ | E91: 6
C92: Ընդհանուրը
C93: ԱԱՀ | D93: 0 | G93: 0
C94: Ընդհանուրը
B96: Ներկայացվող բոլոր գները պետք է ներառեն վերադիր ծախսերը, շահույթը և տեղափողման ծախսերը։
B97: Օգտագործվող բոլոր նյութերը պետք է լինեն նոր, բարձրորակ և չօգտագործված։
C99: Շինարարական կազմակերպություն`
C101: Տնօրեն`
C103: Ստորագրություն | D103: Ամսաթիվ

Sheet English
B2: KOTAYK REGION , RA CHARENTSAVAN CITY KINDERGARDEN RENOVATION AT 15 KOCHAR STREET
C3: Volume sheet
B5: № | C5: Name of activities | D5: Unit | E5: amount | F5: Total Price
F6: (material + work)
F7: AMD
F8: unit | G8: total
C9: Demolition work
B10: 1 | C10: Demolition of partitions from slab concrete slabs 100 mm thick. | D10: մ3 | E10: =10.71*0.15 -> 1.6065
B11: 2 | C11: Demolition of wooden doors | D11: 100m2 | E11: 0.036
B12: =B11+1 -> 3 | C12: Parquet demolition | D12: 100m2 | E12: 0.705
B13: 4 | C13: Demolition of mosaic floors | D13: 100m2 | E13: =80.6/100 -> 0.806
B14: 5 | C14: Demolition of ceramic tiles | D14: 100m2 | E14: 0.041
B15: 6 | C15: Jam-sand smooth. Layer thick. 30 mm | D15: 100m2 | E15: =557.6/100 -> 5.576
B16: 7 | C16: Cleaning old paint from the walls | D16: 100m2 | E16: 1.614
B17: 8 | C17: Demolition of plaster plaster from the ceiling | D17: 100m2 | E17: 2.5
B18: 9 | C18: Garbage collection և transportation up to 11 km | D18: t | E18: 1.223
C19: Windows, doors
B20: 1 | C20: Metal-plastic window local 60 mm thick with 4 + 4 mm white opening | D20: m2 | E20: 4.2
B21: 2 | C21: Metal-plastic window with local 60 mm thick 4 + 4 mm glass package white, non-opening | D21: m2 | E21: 6.64
B22: 3 | C22: Metal-plastic doors local white | D22: m2 | E22: 9.4
B23: 4 | C23: Plastic window sills 25 cm | D23: g.m. | E23: =1.75*4 -> 7
C24: Floors:
B25: 1 | C25: Plaster the walls with plaster mortar | D25: 100m2 | E25: 0.602
B26: 2 | C26: Wall painting | D26: 100m2 | E26: 1.665
B27: 3 | C27: Wall plaster with cement mortar | D27: 100m2 | E27: 0.375
B28: 4 | C28: Plaster of window sills with plaster mortar | D28: 100m2 | E28: 0.101
B29: 5 | C29: Painting window panes | D29: 100m2 | E29: =+E28 -> 0.101
B30: 6 | C30: Ceramic wall tiling | D30: 100m2 | E30: 0.309
B31: 7 | C31: Armstrong ceiling | D31: m2 | E31: 66.1
C32: Constructive works
B33: 1 | C33: Partition row with 10 cm concrete blocks | D33: m2 | E33: 16.5
B34: 2 | C34: Partition row with 20 cm concrete blocks | D34: m2 | E34: 13.5
B35: 3 | C35: Filling of holes with light concrete B-7.5 class | D35: m3 | E35: =(16.5*0.1)*0.25+0.81 -> 1.2225
B36: 4 | C36: Reinforcement of the wall | D36: t | E36: =0.041+0.0362 -> 0.0772
B37: 5 | C37: Reinforcement A500C class 12 mm | D37: t | E37: =+E36 -> 0.0772
B38: 6 | C38: Filling of stones demolished from external walls with the use of polished tuff stone c / a mortar | D38: m3 | E38: =0.22+0.56+0.2 -> 0.98
B39: 7 | C39: Exterior wall plaster with cement mortar | D39: 100m2 | E39: 0.0178
B40: 8 | C40: Exterior wall painting with facade paint | D40: 100m2 | E40: =+E39 -> 0.0178
B41: 9 | C41: Reinforcement of the wall | D41: t | E41: =(0.0126+0.0432+0.0378+0.0756+0.0729+0.0252+0.0288+0.048)/10 -> 0.03441
B42: 10 | C42: Reinforcement A500C class 12 mm | D42: t | E42: =(0.0126+0.0432+0.0378+0.0756+0.0729+0.0252+0.0288+0.048)/10 -> 0.03441
B43: 11 | C43: Implementation of reinforced concrete barriers with B-20 class concrete | D43: m3 | E43: 0.39
B44: 12 | C44: Reinforcement A500C class | D44: t | E44: 0.037
B45: 13 | C45: Reinforcement of Ac1 class | D45: t | E45: 0.048
C46: Cold and hot water supply inside the building
B47: 1 | C47: polypropylene pipe PPR-AL-PEX Ø25mm | D47: m | E47: 16
B48: 2 | C48: polypropylene pipe PPR-AL-PEX ∅20 | D48: m | E48: 18
B49: 3 | C49: PPR clamp (clip) Ø25 mm | D49: unit | E49: 20
B50: 4 | C50: PPR clamp (clip) Ø20 mm | D50: unit | E50: 30
B51: 5 | C51: polypropylene pipe particles Ø25 | D51: unit | E51: =2+5+4+5 -> 16
B52: 6 | C52: polypropylene pipe particles Ø20 | D52: unit | E52: 8
B53: 7 | C53: PPR ball valve Ø25 mm | D53: unit | E53: 4
B54: 8 | C54: Combined angle 20-1 / 2 * F | D54: unit | E54: 16
B55: 9 | C55: Installation of sink faucet mixer | D55: unit | E55: 9
B56: 10 | C56: System testing | D56: 100m | E56: =0.16+0.18 -> 0.34
C57: internal and external sewerage works
B58: 1 | C58: PVC sewer pipe Ø110 | D58: m | E58: 27
B59: 2 | C59: PVC sewer pipe Ø50 | D59: m | E59: 26.5
B60: 3 | C60: PVC corner Ø110 90 * | D60: unit | E60: 1
B61: 4 | C61: PVC corner Ø110 45 * | D61: unit | E61: 6
B62: 5 | C62: PVC corner Ø50 90 * | D62: unit | E62: 5
B63: 6 | C63: PVC corner Ø50 45 * | D63: unit | E63: 25
B64: 7 | C64: PVC tee Ø110 45 * | D64: unit | E64: 4
B65: 8 | C65: PVC tee Ø110 90 * | D65: unit | E65: 6
B66: 9 | C66: PVC tee Ø50 45 * | D66: unit | E66: 6
B67: 10 | C67: PVC tee Ø50-110 45 * | D67: unit | E67: 6
B68: 11 | C68: PVC transition Ø50-110 | D68: unit | E68: 3
B69: 12 | C69: Stream ö50 | D69: set | E69: 6
B70: 13 | C70: Toilet: | D70: set | E70: 7
B71: 14 | C71: Kitchen | D71: unit | E71: 1
B72: 15 | C72: Sink: | D72: unit | E72: 8
B73: 16 | C73: System testing | D73: 100m | E73: =0.27+0.265 -> 0.535
C74: Electrical works
B75: 1 | C75: Panel with door, wall mounting, for 6 modules | D75: unit | E75: 1
B76: 2 | C76: Single circuit breaker, 40 A 6 kA | D76: unit | E76: 1
B77: 3 | C77: Single circuit breaker, 32A6KA | D77: unit | E77: 5
B78: 4 | C78: Single circuit breaker, 10 A 6 kA | D78: unit | E78: 2
B79: 5 | C79: Copper cable ВВГнг-Ls 3x1.5 mm2 | D79: 100m | E79: 0.84
B80: 6 | C80: Copper cable ВВГнг-Ls 3x2.5 mm2 | D80: 100m | E80: 0.72
B81: 7 | C81: Copper cable ВВГнг-Ls 3x4 mm2 | D81: 100m | E81: 0.27
B82: 8 | C82: Polyethylene electro-technical corrugated pipe Non-combustible Ф20 mm | D82: 100m | E82: 0.37
B83: 9 | C83: Socket 16A, market type | D83: 100 unit | E83: 0.17
B84: 10 | C84: Switch, 220 V, 6 A. | D84: 100 unit | E84: 0.02
B85: 11 | C85: Switch, double 220V, 6A | D85: 100 unit | E85: =3/100 -> 0.03
B86: 12 | C86: Frame 1 place | D86: unit | E86: 5
B87: 13 | C87: Frame 2 places | D87: unit | E87: 6
B88: 14 | C88: Socket / switch box | D88: unit | E88: 22
B89: 15 | C89: LED ceiling light 36 wt | D89: unit | E89: 22
B90: 16 | C90: LED ceiling light 22 wt | D90: unit | E90: 6
C91: Total:
C92: VAT: | D92: 0 | G92: 0
C93: Total:
B95: All prices quoted should include overhead costs, profit և relocation costs.
B96: All materials used must be new, high quality, unused
C98: Construction Company
C100: Director
C102: Signature | D102: Date
